[Event "33rd Pula Open 2019"]
[Site "Pula"]
[Date "2019.06.22"]
[Round "1.10"]
[White "Olenik Campa, Rudi"]
[Black "Franic, Milan"]
[Result "1-0"]
[ECO "B41"]
[WhiteElo "1854"]
[BlackElo "2379"]
[Annotator "ChessBase"]
[PlyCount "117"]
[EventDate "2019.06.22"]
[EventType "swiss"]
[EventCountry "CRO"]
[SourceTitle "playchess.com"]
[Source "ChessBase"]
[SourceQuality "1"]
[TimeControl "5400+30"]

1. e4 {[%emt 0:00:30]} c5 {[%emt 0:00:30]} 2. Nf3 {[%emt 0:00:00]} a6 {[%emt 0:00:00]} 3. c4 {[%emt 0:00:00]} d6 {[%emt 0:00:00]} 4. d4 {[%emt 0:00:00]} cxd4 {[%emt 0:00:00]} 5. Nxd4 {[%emt 0:00:00]} Nf6 {[%emt 0:00:00]} 6. Nc3 {[%emt 0:00:30]} e6 {[%emt 0:00:30]} 7. f3 {[%emt 0:00:00]} Nbd7 {[%emt 0:01:30]} 8. Be3 {[%emt 0:00:00]} Qc7 {[%emt 0:00:00]} 9. Be2 {[%emt 0:00:30]} Ne5 {[%emt 0:00:00]} 10. Rc1 {[%emt 0:00:30]} Be7 {[%emt 0:00:30]} 11. O-O {[%emt 0:00:00]} O-O {[%emt 0:00:30]} 12. Qd2 {[%emt 0:00:00]} b6 {[%emt 0:00:30]} 13. Rfd1 {[%emt 0:00:30]} Bb7 {[%emt 0:00:00]} 14. Bf1 {[%emt 0:00:30]} Rac8 {[%emt 0:00:00]} 15. Qf2 {[%emt 0:01:30]} Nfd7 {[%emt 0:00:30]} 16. b3 {[%emt 0:04:30]} Rfe8 {[%emt 0:00:30]} 17. Na4 {[%emt 0:05:30]} Nc5 {[%emt 0:00:00]} 18. Nxc5 {[%emt 0:01:30]} bxc5 {[%emt 0:00:00]} 19. Ne2 {[%emt 0:00:30]} Bf6 {[%emt 0:00:30]} 20. Nc3 {[%emt 0:00:30]} Nc6 {[%emt 0:00:00]} 21. Bd3 {[%emt 0:02:30]} Qa5 {[%emt 0:05:00]} 22. Qd2 {[%emt 0:02:30]} Be5 {[%emt 0:02:30]} 23. Ne2 {[%emt 0:03:30]} Qc7 {[%emt 0:00:00]} 24. Bb1 {[%emt 0:05:30]} Rcd8 {[%emt 0:02:00]} 25. a3 {[%emt 0:02:30]} a5 {[%emt 0:08:30]} 26. Qc2 {[%emt 0:00:30]} g6 {[%emt 0:01:30]} 27. Kh1 {[%emt 0:00:30]} Rb8 {[%emt 0:02:30]} 28. Qd2 {[%emt 0:06:30]} Red8 {[%emt 0:07:30]} 29. Qe1 {[%emt 0:02:30]} Qe7 {[%emt 0:06:30]} 30. Rd2 {[%emt 0:01:30]} Ba8 {[%emt 0:00:30]} 31. Ba2 {[%emt 0:01:30]} Qf6 {[%emt 0:04:30]} 32. Rcd1 {[%emt 0:01:30]} g5 {[%emt 0:00:30]} 33. Qf2 {[%emt 0:03:30]} Kh8 {[%emt 0:03:30]} 34. Nc1 {[%emt 0:06:30]} Bd4 {[%emt 0:06:30]} 35. Ne2 {[%emt 0:01:30]} e5 {[%emt 0:00:30]} 36. Ng3 {[%emt 0:00:30]} Bb7 {[%emt 0:00:30]} 37. Nf5 {[%emt 0:01:30]} Bc8 {[%emt 0:00:00]} 38. g4 {[%emt 0:02:30]} Bxf5 {[%emt 0:10:00]} 39. gxf5 {[%emt 0:00:30]} Rg8 {[%emt 0:00:30]} 40. Rg1 {[%emt 0:00:00]} Qh6 {[%emt 0:00:30]} 41. Rg4 {[%emt 0:01:00]} Qh3 {[%emt 0:04:30]} 42. Rg3 {[%emt 0:01:30]} Qh4 {[%emt 0:04:30]} 43. Rxg5 {[%emt 0:05:30]} Rxg5 {[%emt 0:09:30]} 44. Qxh4 {[%emt 0:02:30]} Bxe3 {[%emt 0:00:00]} 45. Rg2 {[%emt 0:00:00]} Rxg2 {[%emt 0:00:00]} 46. Kxg2 {[%emt 0:00:00]} Rg8+ {[%emt 0:00:00]} 47. Kf1 {[%emt 0:02:30]} Rg1+ {[%emt 0:00:00]} 48. Ke2 {[%emt 0:00:30]} Bg5 {[%emt 0:00:00]} 49. Qh5 {[%emt 0:01:30]} h6 {[%emt 0:07:00]} 50. Qxf7 {[%emt 0:00:30]} Nd4+ {[%emt 0:02:27]} 51. Kf2 {[%emt 0:00:30]} Ra1 {[%emt 0:00:03]} 52. f6 {[%emt 0:04:30]} Rxa2+ {[%emt 0:00:39]} 53. Kf1 {[%emt 0:00:30]} Bxf6 {[%emt 0:00:37]} 54. Qxf6+ {[%emt 0:00:30]} Kh7 {[%emt 0:00:03]} 55. Qxd6 {[%emt 0:00:00]} Nxf3 {[%emt 0:00:15]} 56. Qe7+ {[%emt 0:00:00]} Kg6 {[%emt 0:00:30]} 57. Qe6+ {[%emt 0:00:30]} Kg7 {[%emt 0:00:04]} 58. Qg4+ {[%emt 0:00:30]} Ng5 {[%emt 0:00:04]} 59. h4 {[%emt 0:00:30]} 1-0

[Event "33rd Pula Open 2019"]
[Site "Pula"]
[Date "2019.06.22"]
[Round "1.11"]
[White "Biti, Ozren"]
[Black "Purini, Bruno"]
[Result "1-0"]
[ECO "C50"]
[WhiteElo "2374"]
[BlackElo "1853"]
[Annotator "ChessBase"]
[PlyCount "33"]
[EventDate "2019.06.22"]
[EventType "swiss"]
[EventCountry "CRO"]
[SourceTitle "playchess.com"]
[Source "ChessBase"]
[SourceQuality "1"]
[TimeControl "5400+30"]

1. e4 {[%emt 0:03:30]} e5 {[%emt 0:00:30]} 2. Nf3 {[%emt 0:00:00]} Nc6 {[%emt 0:00:00]} 3. Bc4 {[%emt 0:00:00]} Bc5 {[%emt 0:00:00]} 4. O-O {[%emt 0:00:30]} Nf6 {[%emt 0:00:30]} 5. d3 {[%emt 0:00:30]} h6 {[%emt 0:00:30]} 6. a4 {[%emt 0:01:30]} a5 {[%emt 0:00:30]} 7. c3 {[%emt 0:01:30]} d6 {[%emt 0:00:30]} 8. Nbd2 {[%emt 0:02:30]} O-O {[%emt 0:01:30]} 9. h3 {[%emt 0:04:30]} Ne7 {[%emt 0:06:30]} 10. d4 {[%emt 0:12:30]} exd4 {[%emt 0:00:30]} 11. cxd4 {[%emt 0:00:30]} Bb6 {[%emt 0:00:30]} 12. Bd3 {[%emt 0:02:30]} c6 {[%emt 0:07:30]} 13. Re1 {[%emt 0:09:30]} Re8 {[%emt 0:01:30]} 14. Nf1 {[%emt 0:03:30]} Ng6 {[%emt 0:05:30]} 15. Ng3 {[%emt 0:00:30]} Be6 {[%emt 0:03:30]} 16. Be3 {[%emt 0:04:30]} Qd7 {[%emt 0:08:30]} 17. d5 {[%emt 0:07:30]} 1-0

[Event "33rd Pula Open 2019"]
[Site "Pula"]
[Date "2019.06.22"]
[Round "1.12"]
[White "Bittner, Peter"]
[Black "Filipovic, Branko"]
[Result "0-1"]
[ECO "A48"]
[WhiteElo "1849"]
[BlackElo "2371"]
[Annotator "ChessBase"]
[PlyCount "182"]
[EventDate "2019.06.22"]
[EventType "swiss"]
[EventCountry "CRO"]
[SourceTitle "playchess.com"]
[Source "ChessBase"]
[SourceQuality "1"]
[TimeControl "5400+30"]

1. d4 {[%emt 0:00:30]} Nf6 {[%emt 0:00:30]} 2. Bf4 {[%emt 0:00:00]} b6 {[%emt 0:01:30]} 3. Nf3 {[%emt 0:00:00]} Bb7 {[%emt 0:00:00]} 4. e3 {[%emt 0:00:00]} g6 {[%emt 0:01:00]} 5. Nbd2 {[%emt 0:00:00]} Bg7 {[%emt 0:00:30]} 6. Be2 {[%emt 0:00:30]} d6 {[%emt 0:00:30]} 7. c3 {[%emt 0:00:30]} O-O {[%emt 0:00:00]} 8. O-O {[%emt 0:00:30]} Nbd7 {[%emt 0:00:00]} 9. h3 {[%emt 0:00:30]} e6 {[%emt 0:00:30]} 10. Rc1 {[%emt 0:01:30]} Qe7 {[%emt 0:00:30]} 11. Re1 {[%emt 0:03:30]} e5 {[%emt 0:00:30]} 12. dxe5 {[%emt 0:01:30]} dxe5 {[%emt 0:00:30]} 13. Bh2 {[%emt 0:00:30]} Rfd8 {[%emt 0:06:30]} 14. Qc2 {[%emt 0:00:30]} e4 {[%emt 0:00:30]} 15. Nd4 {[%emt 0:02:30]} Ne5 {[%emt 0:06:30]} 16. Rcd1 {[%emt 0:11:30]} Nd3 {[%emt 0:03:30]} 17. Rf1 {[%emt 0:00:30]} c5 {[%emt 0:01:30]} 18. N4b3 {[%emt 0:04:30]} Rac8 {[%emt 0:02:30]} 19. c4 {[%emt 0:05:30]} Ne8 {[%emt 0:02:30]} 20. Rb1 {[%emt 0:04:30]} Nb4 {[%emt 0:08:30]} 21. Qd1 {[%emt 0:02:30]} Nxa2 {[%emt 0:00:30]} 22. Ra1 {[%emt 0:00:30]} Nb4 {[%emt 0:00:00]} 23. Rxa7 {[%emt 0:00:30]} Bxb2 {[%emt 0:05:00]} 24. Qb1 {[%emt 0:07:30]} Bg7 {[%emt 0:00:30]} 25. Rd1 {[%emt 0:05:30]} f5 {[%emt 0:01:30]} 26. Bf4 {[%emt 0:06:30]} Ra8 {[%emt 0:04:30]} 27. Rxa8 {[%emt 0:02:30]} Rxa8 {[%emt 0:01:30]} 28. Nf1 {[%emt 0:03:30]} Bc6 {[%emt 0:04:30]} 29. g4 {[%emt 0:09:30]} Na2 {[%emt 0:03:30]} 30. Rd2 {[%emt 0:01:30]} Nc3 {[%emt 0:00:30]} 31. Qc1 {[%emt 0:04:30]} g5 {[%emt 0:10:30]} 32. Bg3 {[%emt 0:00:30]} Nxe2+ {[%emt 0:00:30]} 33. Rxe2 {[%emt 0:00:30]} fxg4 {[%emt 0:00:30]} 34. hxg4 {[%emt 0:01:30]} Qe6 {[%emt 0:00:30]} 35. Nh2 {[%emt 0:01:30]} Ra4 {[%emt 0:01:30]} 36. Rc2 {[%emt 0:00:50]} Nf6 {[%emt 0:04:30]} 37. Qd1 {[%emt 0:03:14]} Rxc4 {[%emt 0:01:30]} 38. Qd8+ {[%emt 0:01:12]} Ne8 {[%emt 0:01:30]} 39. Rxc4 {[%emt 0:00:39]} Qxc4 {[%emt 0:00:00]} 40. Qxb6 {[%emt 0:00:29]} Qd5 {[%emt 0:04:00]} 41. Nxc5 {[%emt 0:01:22]} Bf8 {[%emt 0:00:30]} 42. Na6 {[%emt 0:00:26]} Bd7 {[%emt 0:02:30]} 43. Qd4 {[%emt 0:01:10]} Qxd4 {[%emt 0:09:30]} 44. exd4 {[%emt 0:00:06]} Nf6 {[%emt 0:00:11]} 45. Nc5 {[%emt 0:00:43]} Bxc5 {[%emt 0:00:27]} 46. dxc5 {[%emt 0:00:05]} Nxg4 {[%emt 0:00:06]} 47. c6 {[%emt 0:00:26]} Bc8 {[%emt 0:00:05]} 48. Nxg4 {[%emt 0:00:21]} Bxg4 {[%emt 0:00:02]} 49. c7 {[%emt 0:00:12]} Kf7 {[%emt 0:01:40]} 50. f4 {[%emt 0:01:25]} exf3 {[%emt 0:00:55]} 51. Kf2 {[%emt 0:00:05]} Kf6 {[%emt 0:00:43]} 52. c8=Q {[%emt 0:00:06]} Bxc8 {[%emt 0:00:03]} 53. Kxf3 {[%emt 0:00:04]} Kf5 {[%emt 0:00:06]} 54. Bc7 {[%emt 0:01:25]} h5 {[%emt 0:00:58]} 55. Kg2 {[%emt 0:00:10]} Kg4 {[%emt 0:00:48]} 56. Kh2 {[%emt 0:00:18]} Bb7 {[%emt 0:01:12]} 57. Bb8 {[%emt 0:00:07]} h4 {[%emt 0:00:23]} 58. Bc7 {[%emt 0:00:12]} Kh5 {[%emt 0:00:49]} 59. Bd6 {[%emt 0:00:35]} Kg4 {[%emt 0:01:03]} 60. Bc7 {[%emt 0:00:15]} Kf3 {[%emt 0:00:19]} 61. Bd8 {[%emt 0:00:27]} Kf4 {[%emt 0:00:15]} 62. Be7 {[%emt 0:00:11]} Kf5 {[%emt 0:00:07]} 63. Bd8 {[%emt 0:00:20]} Kg6 {[%emt 0:00:07]} 64. Be7 {[%emt 0:00:18]} Kh5 {[%emt 0:00:07]} 65. Bd6 {[%emt 0:00:27]} g4 {[%emt 0:01:35]} 66. Bf4 {[%emt 0:00:16]} Kg6 {[%emt 0:00:17]} 67. Bc7 {[%emt 0:00:19]} Bc8 {[%emt 0:01:19]} 68. Bb8 {[%emt 0:00:06]} Kf5 {[%emt 0:00:56]} 69. Bc7 {[%emt 0:00:11]} Kg6 {[%emt 0:07:01]} 70. Bb8 {[%emt 0:00:10]} Ba6 {[%emt 0:00:07]} 71. Bc7 {[%emt 0:00:10]} Bf1 {[%emt 0:00:18]} 72. Bd8 {[%emt 0:00:42]} Kh5 {[%emt 0:01:31]} 73. Bc7 {[%emt 0:00:07]} Bd3 {[%emt 0:00:10]} 74. Bb8 {[%emt 0:00:09]} Be4 {[%emt 0:00:37]} 75. Bf4 {[%emt 0:00:23]} Ba8 {[%emt 0:01:28]} 76. Bb8 {[%emt 0:00:20]} Bc6 {[%emt 0:00:02]} 77. Bc7 {[%emt 0:00:27]} Kg6 {[%emt 0:00:10]} 78. Bd8 {[%emt 0:00:30]} Kh5 {[%emt 0:00:24]} 79. Bc7 {[%emt 0:00:00]} Bd5 {[%emt 0:00:03]} 80. Bb8 {[%emt 0:00:00]} Kg5 {[%emt 0:00:15]} 81. Bc7 {[%emt 0:00:30]} Bf3 {[%emt 0:00:44]} 82. Bd8+ {[%emt 0:00:00]} Kh5 {[%emt 0:00:01]} 83. Bc7 {[%emt 0:00:00]} Be2 {[%emt 0:00:42]} 84. Bf4 {[%emt 0:00:30]} Bf1 {[%emt 0:01:33]} 85. Bc7 {[%emt 0:00:30]} Kg6 {[%emt 0:00:21]} 86. Bd8 {[%emt 0:00:00]} Kh5 {[%emt 0:00:47]} 87. Bc7 {[%emt 0:00:00]} Bc4 {[%emt 0:00:30]} 88. Bf4 {[%emt 0:00:30]} Be6 {[%emt 0:00:42]} 89. Bc7 {[%emt 0:00:00]} Kg6 {[%emt 0:00:07]} 90. Bd8 {[%emt 0:00:00]} g3+ {[%emt 0:00:09]} 91. Kg1 {[%emt 0:00:00]} h3 {[%emt 0:00:37]} 0-1

[Event "33rd Pula Open 2019"]
[Site "Pula"]
[Date "2019.06.22"]
[Round "1.13"]
[White "Boric, Muhamed"]
[Black "Siraj, Anej"]
[Result "1-0"]
[ECO "C01"]
[WhiteElo "2361"]
[BlackElo "1848"]
[Annotator "ChessBase"]
[PlyCount "67"]
[EventDate "2019.06.22"]
[EventType "swiss"]
[EventCountry "CRO"]
[SourceTitle "playchess.com"]
[Source "ChessBase"]
[SourceQuality "1"]
[TimeControl "5400+30"]

1. d4 {[%emt 0:01:30]} d6 {[%emt 0:01:30]} 2. e4 {[%emt 0:01:30]} e6 {[%emt 0:00:00]} 3. Nc3 {[%emt 0:05:30]} g6 {[%emt 0:02:00]} 4. Nf3 {[%emt 0:02:30]} h6 {[%emt 0:00:30]} 5. Be3 {[%emt 0:01:30]} Ne7 {[%emt 0:01:30]} 6. Qd2 {[%emt 0:04:30]} b6 {[%emt 0:01:30]} 7. a4 {[%emt 0:03:30]} a6 {[%emt 0:00:30]} 8. Bc4 {[%emt 0:01:30]} Bb7 {[%emt 0:00:30]} 9. d5 {[%emt 0:06:30]} e5 {[%emt 0:00:30]} 10. Ng1 {[%emt 0:00:30]} f5 {[%emt 0:09:30]} 11. f4 {[%emt 0:00:30]} Bg7 {[%emt 0:00:30]} 12. fxe5 {[%emt 0:00:30]} dxe5 {[%emt 0:00:30]} 13. Nf3 {[%emt 0:00:30]} f4 {[%emt 0:02:30]} 14. Bf2 {[%emt 0:00:30]} Nc8 {[%emt 0:00:30]} 15. g3 {[%emt 0:01:30]} Nd6 {[%emt 0:03:30]} 16. Be2 {[%emt 0:01:30]} g5 {[%emt 0:05:30]} 17. gxf4 {[%emt 0:00:30]} gxf4 {[%emt 0:01:30]} 18. Rg1 {[%emt 0:01:30]} Qf6 {[%emt 0:03:30]} 19. Nh4 {[%emt 0:00:30]} Qf7 {[%emt 0:12:30]} 20. Ng6 {[%emt 0:02:30]} Rg8 {[%emt 0:00:30]} 21. Bh5 {[%emt 0:00:30]} Kd8 {[%emt 0:00:30]} 22. Qe2 {[%emt 0:00:00]} Bf6 {[%emt 0:02:30]} 23. O-O-O {[%emt 0:01:00]} f3 {[%emt 0:05:30]} 24. Qe3 {[%emt 0:02:30]} Rg7 {[%emt 0:07:30]} 25. Kb1 {[%emt 0:02:30]} Bg5 {[%emt 0:11:30]} 26. Rxg5 {[%emt 0:00:30]} Nc4 {[%emt 0:01:30]} 27. Nxe5 {[%emt 0:04:30]} Qf8 {[%emt 0:06:06]} 28. Nxc4 {[%emt 0:10:30]} hxg5 {[%emt 0:00:15]} 29. d6 {[%emt 0:00:30]} Nd7 {[%emt 0:02:46]} 30. dxc7+ {[%emt 0:00:30]} Kxc7 {[%emt 0:00:05]} 31. Nxb6 {[%emt 0:01:30]} Ne5 {[%emt 0:02:02]} 32. Nxa8+ {[%emt 0:00:30]} Bxa8 {[%emt 0:00:08]} 33. Qb6+ {[%emt 0:02:30]} Kc8 {[%emt 0:00:16]} 34. Qe6+ {[%emt 0:00:30]} 1-0

[Event "33rd Pula Open 2019"]
[Site "Pula"]
[Date "2019.06.22"]
[Round "1.14"]
[White "Mihelic, Vesna"]
[Black "Jelen, Igor"]
[Result "0-1"]
[ECO "B30"]
[WhiteElo "1844"]
[BlackElo "2353"]
[Annotator "ChessBase"]
[PlyCount "90"]
[EventDate "2019.06.22"]
[EventType "swiss"]
[EventCountry "CRO"]
[SourceTitle "playchess.com"]
[Source "ChessBase"]
[SourceQuality "1"]
[TimeControl "5400+30"]

1. e4 {[%emt 0:00:30]} c5 {[%emt 0:00:30]} 2. Nf3 {[%emt 0:00:00]} Nc6 {[%emt 0:00:30]} 3. Nc3 {[%emt 0:00:00]} e5 {[%emt 0:04:30]} 4. Bc4 {[%emt 0:00:30]} Be7 {[%emt 0:00:30]} 5. d3 {[%emt 0:01:30]} Nf6 {[%emt 0:01:30]} 6. Nd2 {[%emt 0:01:30]} d6 {[%emt 0:00:30]} 7. Nf1 {[%emt 0:00:30]} Bg4 {[%emt 0:00:30]} 8. f3 {[%emt 0:07:30]} Be6 {[%emt 0:01:30]} 9. Ne3 {[%emt 0:00:30]} Nd7 {[%emt 0:04:30]} 10. O-O {[%emt 0:03:30]} O-O {[%emt 0:05:30]} 11. Ncd5 {[%emt 0:04:30]} Bg5 {[%emt 0:01:30]} 12. c3 {[%emt 0:01:30]} Na5 {[%emt 0:18:30]} 13. f4 {[%emt 0:17:30]} exf4 {[%emt 0:02:30]} 14. Nxf4 {[%emt 0:00:30]} Nxc4 {[%emt 0:15:30]} 15. Nxc4 {[%emt 0:01:30]} Bxc4 {[%emt 0:08:30]} 16. dxc4 {[%emt 0:00:30]} Ne5 {[%emt 0:06:30]} 17. b3 {[%emt 0:02:30]} Bxf4 {[%emt 0:01:30]} 18. Bxf4 {[%emt 0:00:30]} Qe7 {[%emt 0:00:30]} 19. Qd5 {[%emt 0:02:30]} Rad8 {[%emt 0:01:30]} 20. Rad1 {[%emt 0:01:30]} Kh8 {[%emt 0:05:17]} 21. b4 {[%emt 0:04:30]} cxb4 {[%emt 0:03:58]} 22. cxb4 {[%emt 0:00:30]} f6 {[%emt 0:00:19]} 23. Rd2 {[%emt 0:17:30]} Qc7 {[%emt 0:01:14]} 24. Rc1 {[%emt 0:01:30]} Qb6+ {[%emt 0:02:02]} 25. Qd4 {[%emt 0:09:30]} Qxb4 {[%emt 0:00:28]} 26. Rb2 {[%emt 0:00:30]} Qa3 {[%emt 0:01:50]} 27. Rxb7 {[%emt 0:00:30]} Nd3 {[%emt 0:01:07]} 28. Rf1 {[%emt 0:04:09]} Nxf4 {[%emt 0:05:22]} 29. Rxf4 {[%emt 0:00:07]} a5 {[%emt 0:00:25]} 30. Rf2 {[%emt 0:04:34]} Rc8 {[%emt 0:00:44]} 31. Rc2 {[%emt 0:02:11]} Rfe8 {[%emt 0:01:13]} 32. Rcb2 {[%emt 0:03:46]} h6 {[%emt 0:01:09]} 33. R7b5 {[%emt 0:02:22]} Kh7 {[%emt 0:01:43]} 34. h3 {[%emt 0:02:17]} Qa4 {[%emt 0:00:40]} 35. Qxd6 {[%emt 0:01:28]} Rxc4 {[%emt 0:00:45]} 36. Qd7 {[%emt 0:01:16]} Rc1+ {[%emt 0:00:44]} 37. Kh2 {[%emt 0:00:08]} Qxe4 {[%emt 0:00:10]} 38. Rf2 {[%emt 0:02:05]} Re7 {[%emt 0:01:00]} 39. Qd2 {[%emt 0:00:20]} Rc4 {[%emt 0:02:17]} 40. Rxa5 {[%emt 0:00:39]} Rd4 {[%emt 0:00:21]} 41. Qc2 {[%emt 0:00:41]} Rd3 {[%emt 0:00:11]} 42. Raf5 {[%emt 0:00:22]} Red7 {[%emt 0:00:51]} 43. R5f3 {[%emt 0:00:37]} Qg6 {[%emt 0:00:39]} 44. Rxd3 {[%emt 0:00:37]} Rxd3 {[%emt 0:00:25]} 45. Rd2 {[%emt 0:00:37]} Qg3+ {[%emt 0:00:13]} 0-1

[Event "33rd Pula Open 2019"]
[Site "Pula"]
[Date "2019.06.22"]
[Round "1.15"]
[White "Medak, Bojan"]
[Black "Kocevar, Tugomir"]
[Result "1-0"]
[ECO "A29"]
[WhiteElo "2342"]
[BlackElo "1841"]
[Annotator "ChessBase"]
[PlyCount "39"]
[EventDate "2019.06.22"]
[EventType "swiss"]
[EventCountry "CRO"]
[SourceTitle "playchess.com"]
[Source "ChessBase"]
[SourceQuality "1"]
[TimeControl "5400+30"]

1. c4 {[%emt 0:03:30]} Nf6 {[%emt 0:01:30]} 2. Nc3 {[%emt 0:00:30]} e5 {[%emt 0:00:30]} 3. Nf3 {[%emt 0:00:30]} Nc6 {[%emt 0:00:30]} 4. g3 {[%emt 0:00:30]} h6 {[%emt 0:04:30]} 5. Bg2 {[%emt 0:00:30]} d5 {[%emt 0:01:30]} 6. cxd5 {[%emt 0:00:30]} Nxd5 {[%emt 0:00:00]} 7. Nxe5 {[%emt 0:01:30]} Nxc3 {[%emt 0:01:00]} 8. Nxc6 {[%emt 0:00:30]} Nxd1 {[%emt 0:00:30]} 9. Nxd8 {[%emt 0:00:00]} Nxf2 {[%emt 0:01:30]} 10. Nxf7 {[%emt 0:00:00]} Nd3+ {[%emt 0:08:30]} 11. exd3 {[%emt 0:00:30]} Kxf7 {[%emt 0:00:30]} 12. O-O+ {[%emt 0:00:30]} Ke8 {[%emt 0:01:30]} 13. d4 {[%emt 0:01:30]} Bd6 {[%emt 0:00:30]} 14. d3 {[%emt 0:00:30]} Rb8 {[%emt 0:01:30]} 15. Bf4 {[%emt 0:00:30]} Rf8 {[%emt 0:02:30]} 16. Rae1+ {[%emt 0:03:30]} Kd8 {[%emt 0:06:30]} 17. Bxd6 {[%emt 0:01:30]} Rxf1+ {[%emt 0:00:30]} 18. Rxf1 {[%emt 0:00:30]} cxd6 {[%emt 0:00:30]} 19. Rf8+ {[%emt 0:00:30]} Ke7 {[%emt 0:03:30]} 20. Rg8 {[%emt 0:04:30]} 1-0

[Event "33rd Pula Open 2019"]
[Site "Pula"]
[Date "2019.06.23"]
[Round "2.6"]
[White "Berezjuk, Sergej"]
[Black "Klaric, Zoran"]
[Result "0-1"]
[ECO "E60"]
[WhiteElo "2411"]
[BlackElo "2086"]
[Annotator "RC"]
[PlyCount "118"]
[EventDate "2019.06.22"]
[EventType "swiss"]
[EventCountry "CRO"]
[SourceTitle "playchess.com"]
[Source "ChessBase"]
[SourceQuality "1"]
[TimeControl "5400+30"]

1. Nf3 Nf6 2. c4 g6 3. b3 d6 4. d4 Bg7 5. Bb2 O-O 6. g3 Nbd7 7. Bg2 e5 8. dxe5 Ng4 9. O-O Ngxe5 10. Nc3 Nc6 11. Qc1 Re8 12. Re1 Nc5 13. Nd5 Ne5 14. Nxe5 dxe5 15. Rd1 c6 16. Nc3 Qc7 17. Ba3 Bf8 18. b4 Ne6 19. e3 f5 20. c5 Ng5 21. f4 Nf7 22. Bb2 exf4 23. exf4 Be6 24. Qc2 Bg7 25. Ne2 Bxb2 26. Qxb2 Rad8 27. h3 Rxd1+ 28. Rxd1 Bc4 29. Nd4 Qe7 30. Kh2 h5 31. Nf3 Bd5 32. Re1 Qd8 33. Rxe8+ Qxe8 34. Qd2 b6 35. cxb6 axb6 36. a4 Nd6 37. Ne5 Ne4 38. Bxe4 fxe4 39. a5 bxa5 40. bxa5 Kh7 41. g4 hxg4 42. hxg4 g5 43. Kg3 Kg8 44. Qc3 gxf4+ 45. Kxf4 Qf8+ 46. Kg3 Qf6 47. Qd4 Qd6 48. g5 c5 49. Qc3 Be6 50. Kf4 Qf8+ 51. Kxe4 Qf5+ 52. Ke3 Qxg5+ 53. Kf2 Qf4+ 54. Ke1 Qe4+ 55. Kd2 Qg2+ 56. Kc1 Qf1+ 57. Kb2 Qb5+ 58. Ka3 Qb1 59. Nd3 Qa2# 0-1

[Event "33rd Pula Open 2019"]
[Site "Pula"]
[Date "2019.06.23"]
[Round "2.7"]
[White "Skuhala, Barbara"]
[Black "Grishchenko, Sergey"]
[Result "0-1"]
[ECO "B15"]
[WhiteElo "2090"]
[BlackElo "2411"]
[Annotator "ChessBase"]
[PlyCount "68"]
[EventDate "2019.06.22"]
[EventType "swiss"]
[EventCountry "CRO"]
[SourceTitle "playchess.com"]
[Source "ChessBase"]
[SourceQuality "1"]
[TimeControl "5400+30"]

1. e4 c6 2. d4 d5 3. f3 g6 4. Nc3 Bg7 5. Be3 Qb6 6. a3 e5 7. Nge2 Ne7 8. Qd2 Qxb2 9. Ra2 Qb6 10. dxe5 Qa5 11. Bg5 d4 12. Nxd4 Qxe5 13. Nce2 O-O 14. Bf4 Qc5 15. Qb4 Na6 16. Qxc5 Nxc5 17. Bd6 Ne6 18. c3 Re8 19. Rb2 b6 20. Kd2 c5 21. Nxe6 Bxe6 22. Bf4 Rad8+ 23. Kc2 Bd7 24. Kc1 Ba4 25. Rd2 Nc6 26. Rxd8 Rxd8 27. Bg5 Rd3 28. Bd2 Na5 29. Nd4 Rxd2 30. Kxd2 cxd4 31. cxd4 Bxd4 32. Bd3 Bd7 33. Ke2 Nb3 34. Bc4 Be6 0-1

[Event "33rd Pula Open 2019"]
[Site "Pula"]
[Date "2019.06.23"]
[Round "2.8"]
[White "Zufic, Miroslav"]
[Black "Grant, David J"]
[Result "1-0"]
[ECO "B76"]
[WhiteElo "2380"]
[BlackElo "2082"]
[Annotator "NA"]
[PlyCount "59"]
[EventDate "2019.06.22"]
[EventType "swiss"]
[EventCountry "CRO"]
[SourceTitle "playchess.com"]
[Source "ChessBase"]
[SourceQuality "1"]
[TimeControl "5400+30"]

1. e4 c5 2. Nf3 d6 3. d4 cxd4 4. Nxd4 Nf6 5. Nc3 g6 6. Be3 Bg7 7. f3 Nc6 8. Qd2 O-O 9. O-O-O d5 10. exd5 Nxd5 11. Nxc6 bxc6 12. Bd4 e5 13. Bc5 Be6 14. Ne4 Re8 15. Bc4 Qc7 16. h4 h6 17. g4 Red8 18. g5 h5 19. Kb1 Rab8 20. Bb3 Nf4 21. Qe3 Qa5 22. Be7 Rxd1+ 23. Rxd1 {[%emt 0:45:30]} Bxb3 {[%emt 1:07:30]} 24. axb3 {[%emt 0:00:30]} Nd5 {[%emt 0:00:30]} 25. Qd4 {[%emt 0:00:30]} Qa6 {[%emt 0:00:30]} 26. c4 {[%emt 0:00:30]} Nb4 {[%emt 0:00:30]} 27. Qd8+ {[%emt 0:00:30]} Rxd8 {[%emt 0:00:30]} 28. Rxd8+ {[%emt 0:00:30]} Kh7 {[%emt 0:00:30]} 29. Nf6+ {[%emt 0:00:30]} Bxf6 {[%emt 0:00:30]} 30. Bxf6 {[%emt 0:00:30]} 1-0

[Event "33rd Pula Open 2019"]
[Site "Pula"]
[Date "2019.06.23"]
[Round "2.9"]
[White "Lunn, Matthew"]
[Black "Biti, Ozren"]
[Result "1/2-1/2"]
[ECO "E33"]
[WhiteElo "2065"]
[BlackElo "2374"]
[Annotator "ChessBase"]
[PlyCount "78"]
[EventDate "2019.06.22"]
[EventType "swiss"]
[EventCountry "CRO"]
[SourceTitle "playchess.com"]
[Source "ChessBase"]
[SourceQuality "1"]
[TimeControl "5400+30"]

1. d4 Nf6 2. c4 Nc6 3. Nf3 e6 4. Nc3 Bb4 5. Qc2 d6 6. a3 Bxc3+ 7. Qxc3 O-O 8. Bg5 h6 9. Bh4 g5 10. Bg3 Ne4 11. Qc2 f5 12. e3 Qf6 13. d5 Ne7 14. dxe6 Bxe6 15. Bd3 Nc5 16. O-O Ng6 17. Ne1 Ne5 18. Bxe5 dxe5 19. e4 f4 20. b4 Nxd3 21. Nxd3 f3 22. g3 Rad8 23. Rfd1 Rd4 24. Nb2 Rfd8 25. Rxd4 Rxd4 26. Rd1 Qd8 27. c5 Kg7 28. Rd3 Rxd3 29. Qxd3 Qxd3 30. Nxd3 Kf6 31. Ne1 g4 32. Nc2 h5 33. Ne3 c6 34. Kf1 Ba2 35. Ke1 Ke6 36. Kd2 Bb1 37. Nc2 Ba2 38. Ne3 Bb1 39. Nc2 Ba2 1/2-1/2

[Event "33rd Pula Open 2019"]
[Site "Pula"]
[Date "2019.06.23"]
[Round "2.11"]
[White "Zinchenko, Vladimir"]
[Black "Boric, Muhamed"]
[Result "*"]
[ECO "B21"]
[WhiteElo "2056"]
[BlackElo "2361"]
[Annotator "ChessBase"]
[PlyCount "75"]
[EventDate "2019.06.22"]
[EventType "swiss"]
[EventCountry "CRO"]
[SourceTitle "playchess.com"]
[Source "ChessBase"]
[SourceQuality "1"]
[TimeControl "5400+30"]

1. e4 c5 2. f4 d5 3. exd5 Qxd5 4. Nc3 Qd6 5. Bb5+ Bd7 6. Bxd7+ Nxd7 7. Qf3 Rb8 8. Nge2 g6 9. b3 Bg7 10. Bb2 Ngf6 11. Nb5 Qb6 12. a4 a6 13. Na3 Qc7 14. Nc4 b5 15. Ne5 Nh5 16. axb5 axb5 17. Nxd7 Qxd7 18. Bxg7 Nxg7 19. d3 Nf5 20. O-O h5 21. Ra6 c4 22. Qc6 cxb3 23. cxb3 Rc8 24. Qxd7+ Kxd7 25. Ra7+ Rc7 26. Rxc7+ Kxc7 27. Rc1+ Kb6 28. b4 Rd8 29. Rc3 Nd4 30. Nc1 Nc6 31. Rb3 Rd4 32. Na2 Rxf4 33. g3 Rd4 34. Kf2 h4 35. Ke3 hxg3 36. hxg3 e6 37. Nc3 Nxb4 38. Ne2 *